{"text_format":"1","workbook":"xlsx","n_sheets":7,"sheets":["GAME","Instructions","Game Board","Baseline Map","Baseline","gubbins","More gubbins"],"not_rendered":{"charts":0,"images":1,"macros":0,"external_links":0,"defined_names":0,"comments":0,"pivot_tables":0},"unopened":[],"bounds":{"document_bytes":16777216,"sheet_cells":100000,"rows_first":2000,"rows_last":500,"rows_between":2000,"halvings":0,"cell_chars":16384,"cell_head_chars":4096},"cells_cut":0,"cells_raw":0,"read":"whole","date_system":"1900"}

{"sheet":"GAME","index":0,"n_rows":30,"n_cols":13,"rows_kept":30,"cut":false,"hidden":true,"merged":[[29,11,31,11],[29,12,31,12],[29,1,31,1],[29,2,31,2],[29,3,31,3],[29,10,31,10],[23,10,25,10],[23,11,25,11],[23,12,25,12],[26,10,28,10],[26,11,28,11],[26,12,28,12],[23,1,25,1],[23,2,25,2],[23,3,25,3],[26,1,28,1],[26,2,28,2],[26,3,28,3],[13,3,15,3],[13,4,15,4],[13,5,15,5],[8,7,9,7],[10,7,12,7],[7,3,9,3],[7,4,9,4],[7,5,9,5],[10,3,12,3],[10,4,12,4],[10,5,12,5]]}
[]
[]
[]
[null,"Change 5 of the boxes (not the ones with white text)"]
[null,"Use the drop down options",null,null,null,null,null,null,null,"Messages"]
[]
[null,null,null,null,null,null,null,null,null,"Error 1",{"$f":"IF(SUM(B27:B32,D24:D32)=0,\"Error - Enter Building Site square\",\"\")","v":"Error - Enter Building Site square"}]
[null,null,null,"Chalk grassland","Road",{"$f":"'Game Board'!G6","v":0},null,null,null,"Error 2",{"$f":"'More gubbins'!J43","v":""}]
[null,null,null,null,null,null,null,"SCORE",null,"Error 3",{"$f":"'More gubbins'!O58","v":""}]
[null,null,null,null,null,null,null,null,null,"Error 4",{"$f":"'More gubbins'!J92","v":""}]
[null,null,null,{"$f":"'Game Board'!E9","v":0},"Road",{"$f":"'Game Board'!G9","v":0},null,{"$f":"'More gubbins'!M56","v":{"$error":"#N/A"}},null,"Error 5",{"$f":"'More gubbins'!J104","v":""}]
[null,null,null,null,null,null,null,null,null,"Error 6",{"$f":"'More gubbins'!E117","v":"Error - not enough Wheat Crop fields"}]
[]
[null,null,null,{"$f":"'Game Board'!E12","v":0},"Road",{"$f":"'Game Board'!G12","v":0}]
[null,null,null,null,null,null,null,null,null,"Bonus 1",{"$f":"'More gubbins'!J70","v":""}]
[null,null,null,null,null,null,null,null,null,"Bonus 2",{"$f":"'More gubbins'!I96","v":""}]
[null,null,null,null,null,null,null,null,null,"Bonus 3",{"$f":"'More gubbins'!E132","v":""}]
[]
[]
[]
[null,"Put a \"1\" in the square you want to be your Building Site using the drop down",null,null,null,null,null,null,null,null,"Put a \"2\" in the square you want to enhance using the drop down"]
[null,"Remember: only choose one square",null,null,null,null,null,null,null,null,"Remember: only choose one square, and it can't be the same as the Building Site square"]
[]
[null,"n/a","n/a",{"$f":"IF('Game Board'!F24=\"🏢\",1,0)","v":0},null,null,null,null,null,null,"n/a","n/a",{"$f":"IF('Game Board'!J24=\"🌱\",2,0)","v":0}]
[]
[]
[null,{"$f":"IF('Game Board'!D27=\"🏢\",1,0)","v":0},"n/a",{"$f":"IF('Game Board'!F27=\"🏢\",1,0)","v":0},null,null,null,null,null,null,{"$f":"IF('Game Board'!H27=\"🌱\",2,0)","v":0},"n/a",{"$f":"IF('Game Board'!J27=\"🌱\",2,0)","v":0}]
[]
[]
[null,{"$f":"IF('Game Board'!D30=\"🏢\",1,0)","v":0},"n/a",{"$f":"IF('Game Board'!F30=\"🏢\",1,0)","v":0},null,null,null,null,null,null,{"$f":"IF('Game Board'!H30=\"🌱\",2,0)","v":0},"n/a",{"$f":"IF('Game Board'!J30=\"🌱\",2,0)","v":0}]

{"sheet":"Instructions","index":1,"n_rows":31,"n_cols":4,"rows_kept":31,"cut":false,"hidden":false,"merged":[[2,2,4,4],[6,2,6,3]]}
[]
[]
[null,null,"Biodiversity: the game"]
[]
[]
[]
[null,null,"       🖊️ Your task:"]
[]
[null,null,null,"Today you are going to be an ecologist, working to design a new road scheme.  Your aim is to get the highest Biodiversity Score in 10 minutes"]
[]
[]
[]
[null,null,null,"Aim: "]
[null,null,null,"Get the highest number of points, the higher the score, the more biodiverse your patch of land is!  "]
[]
[]
[]
[null,null,null,"Rules:  "]
[null,null,null,"1. You can choose any habitat from the drop downs for the 5 blank spaces shown – with labels in black text rather than white text.\n    More information about the habitats can be found in the worksheets, which should help you work out which combinations score\n    higher than others   "]
[null,null,null,"2. You must chose one square to be the Building Site (🏢), \n    For that square, the habitat after building must match the habitat that was there before.  "]
[null,null,null,"3. You must end up with at least 2 Wheat Crop fields.   "]
[]
[]
[]
[null,null,null,"Bonuses Points:  "]
[null,null,null,"Chalk Grassland: If you can get 3 squares  in a row for Chalk Grassland, you get an extra 5 points - you have connected areas of high\n                              biodiversity habitat which is good\n"]
[null,null,null," Enhance square: You can choose 1 square to leave as it's original habitat, and enhance it to make it more distinctive and enhance its \n                              condition.  It scores double points for that square but must be the same habitat as before to avoid losing habitat (🌱). "]
[null,null,null,"                                       Your Enhance square cannot be the same as your Building Site square  "]
[null,null,null,"Farmer Bonus: The farmer would like fields that are easy to harvest and are connected together.  If you have 2 Wheat Crop fields next \n                           to each other, you get an extra 2 points  "]
[]
[null,null,"⚠️","If you have any error messages, your calculations do not count, and you need to problem solve to fix the error."]

{"sheet":"Game Board","index":2,"n_rows":30,"n_cols":17,"rows_kept":30,"cut":false,"hidden":false,"merged":[[4,3,4,4],[15,3,15,4],[3,3,3,4],[23,3,25,3],[26,3,28,3],[29,9,31,9],[23,7,25,7],[26,7,28,7],[29,7,31,7],[29,3,31,3],[29,4,31,4],[23,8,25,8],[23,4,25,4],[23,5,25,5],[26,4,28,4],[26,5,28,5],[29,5,31,5],[23,9,25,9],[26,8,28,8],[3,12,4,15],[5,12,17,15],[3,9,4,10],[5,6,7,6],[8,6,10,6],[5,9,8,10],[20,12,20,15],[5,5,13,5],[22,12,23,15],[25,12,26,15],[28,16,29,16],[25,16,26,16],[22,16,23,16],[28,12,29,15],[26,9,28,9],[29,8,31,8],[20,3,21,5],[20,7,21,9],[11,4,13,4],[11,6,13,6],[5,4,7,4],[8,4,10,4]]}
[]
[]
[]
[null,null,null,"Nature Reserve",null,null,null,null,null,"SCORE",null,null,"MESSAGES"]
[]
[null,null,null,null,"Chalk Grassland","Road",null,null,null,{"$f":"IF(M6=\"\",GAME!H11,0)","v":0},null,null,{"$f":"_xlfn.TEXTJOIN(CHAR(10),TRUE,GAME!K7:K12)","v":"Error - Enter Building Site square\nError - not enough Wheat Crop fields"}]
[]
[]
[]
[null,null,null,"TOWN"]
[]
[]
[]
[]
[]
[null,null,null,"Nature Reserve"]
[]
[]
[]
[]
[null,null,null,"Use the drop-down to choose your Building Site\nRemember: only choose one square",null,null,null,"Use the drop-down to choose the square you would like to Enhance\nRemember: only choose one square, and it can't be the same as the Building Site square",null,null,null,null,"BONUSES"]
[]
[null,null,null,null,null,null,null,null,null,null,null,null,{"$f":"IF(Q23=0,\"Bonus 1\",GAME!K15)","v":"Bonus 1"},null,null,null,{"$f":"IF(GAME!K15=\"\",0,1)","v":0}]
[null,null,null,"NO BUILD","NO BUILD",null,null,"NO BUILD","NO BUILD"]
[]
[null,null,null,null,null,null,null,null,null,null,null,null,{"$f":"IF(Q26=0,\"Bonus 2\",GAME!K16)","v":"Bonus 2"},null,null,null,{"$f":"IF(GAME!K16=\"\",0,1)","v":0}]
[null,null,null,null,"NO BUILD",null,null,null,"NO BUILD"]
[]
[null,null,null,null,null,null,null,null,null,null,null,null,{"$f":"IF(Q29=0,\"Bonus 3\",GAME!K17)","v":"Bonus 3"},null,null,null,{"$f":"IF(GAME!K17=\"\",0,1)","v":0}]
[null,null,null,null,"NO BUILD",null,null,null,"NO BUILD"]

{"sheet":"Baseline Map","index":3,"n_rows":0,"n_cols":0,"rows_kept":0,"cut":false,"hidden":false,"merged":[]}

{"sheet":"Baseline","index":4,"n_rows":14,"n_cols":13,"rows_kept":14,"cut":false,"hidden":true,"merged":[[13,9,15,9],[13,10,15,10],[10,12,12,12],[13,4,15,4],[13,5,15,5],[13,6,15,6],[13,8,15,8],[7,8,9,8],[7,9,9,9],[7,10,9,10],[10,8,12,8],[10,9,12,9],[10,10,12,10],[7,4,9,4],[7,5,9,5],[7,6,9,6],[10,4,12,4],[10,5,12,5],[10,6,12,6]]}
[]
[]
[]
[]
[null,null,null,null,"Baseline",null,null,null,"Baseline score"]
[]
[]
[null,null,null,null,"Chalk grassland","Wheat crop","Wheat crop",null,{"$f":"VLOOKUP(E8,gubbins!$G$8:$H$12,2,FALSE)","v":6},{"$f":"VLOOKUP(F8,gubbins!$G$8:$H$12,2,FALSE)","v":2},{"$f":"VLOOKUP(G8,gubbins!$G$8:$H$12,2,FALSE)","v":2}]
[null,null,null,null,null,null,null,null,null,null,null,null,"TOTAL"]
[]
[null,null,null,null,"Mown grass","Wheat crop","Wheat crop",null,{"$f":"VLOOKUP(E11,gubbins!$G$8:$H$12,2,FALSE)","v":2},{"$f":"VLOOKUP(F11,gubbins!$G$8:$H$12,2,FALSE)","v":2},{"$f":"VLOOKUP(G11,gubbins!$G$8:$H$12,2,FALSE)","v":2},null,{"$f":"SUM(I8:K16)","v":26}]
[]
[]
[null,null,null,null,"Chalk grassland","Wheat crop","Wheat crop",null,{"$f":"VLOOKUP(E14,gubbins!$G$8:$H$12,2,FALSE)","v":6},{"$f":"VLOOKUP(F14,gubbins!$G$8:$H$12,2,FALSE)","v":2},{"$f":"VLOOKUP(G14,gubbins!$G$8:$H$12,2,FALSE)","v":2}]

{"sheet":"gubbins","index":5,"n_rows":19,"n_cols":9,"rows_kept":19,"cut":false,"hidden":true,"merged":[[12,0,14,0],[12,1,14,1],[12,2,14,2],[6,0,8,0],[6,1,8,1],[6,2,8,2],[9,0,11,0],[9,1,11,1],[9,2,11,2]]}
[]
[]
[]
[]
[]
[]
["Chalk grassland","Wheat crop","Wheat crop",null,null,null,null,"Baseline Score","Creation score"]
[null,null,null,null,null,null,"Chalk Grassland",6,4]
[null,null,null,null,null,null,"Mown Grass",2,1]
["Mown grass","Wheat crop","Wheat crop",null,null,null,"Wheat Crop",2,2]
[null,null,null,null,null,null,"Mixed Scrub",5,5]
[null,null,null,null,null,null,"Road",0,0]
["Chalk grassland","Wheat crop","Wheat crop"]
[]
[]
[]
[null,null,null,null,null,null,"Compound validation",1]
[]
[null,null,null,null,null,null,"Enhance validation",2]

{"sheet":"More gubbins","index":6,"n_rows":134,"n_cols":20,"rows_kept":134,"cut":false,"hidden":true,"merged":[[120,0,122,0],[120,1,122,1],[120,2,122,2],[131,0,132,0],[131,2,132,2],[127,2,128,2],[114,0,116,0],[114,1,116,1],[114,2,116,2],[117,0,119,0],[117,1,119,1],[117,2,119,2],[102,4,104,4],[102,5,104,5],[102,6,104,6],[105,4,107,4],[105,5,107,5],[105,6,107,6],[93,17,95,17],[93,18,95,18],[93,19,95,19],[99,4,101,4],[99,5,101,5],[99,6,101,6],[87,17,89,17],[87,18,89,18],[87,19,89,19],[90,17,92,17],[90,18,92,18],[90,19,92,19],[93,0,95,0],[93,1,95,1],[93,2,95,2],[93,4,95,4],[93,5,95,5],[93,6,95,6],[90,0,92,0],[90,1,92,1],[90,2,92,2],[90,4,92,4],[90,5,92,5],[90,6,92,6],[87,0,89,0],[87,1,89,1],[87,2,89,2],[87,4,89,4],[87,5,89,5],[87,6,89,6],[73,0,75,0],[73,1,75,1],[73,2,75,2],[70,4,72,4],[70,5,72,5],[70,6,72,6],[70,0,72,0],[70,1,72,1],[70,2,72,2],[73,4,75,4],[73,5,75,5],[73,6,75,6],[55,12,57,12],[58,8,60,8],[58,9,60,9],[58,10,60,10],[58,4,60,4],[58,5,60,5],[58,6,60,6],[67,4,69,4],[67,5,69,5],[67,6,69,6],[55,1,57,1],[55,2,57,2],[44,6,46,6],[52,8,54,8],[52,9,54,9],[58,0,60,0],[58,1,60,1],[58,2,60,2],[67,0,69,0],[67,1,69,1],[67,2,69,2],[52,10,54,10],[55,8,57,8],[55,9,57,9],[55,10,57,10],[44,0,46,0],[44,1,46,1],[44,2,46,2],[38,4,40,4],[38,5,40,5],[38,6,40,6],[41,4,43,4],[38,0,40,0],[38,1,40,1],[38,2,40,2],[41,0,43,0],[41,1,43,1],[41,2,43,2],[55,4,57,4],[55,5,57,5],[55,6,57,6],[52,0,54,0],[52,1,54,1],[52,2,54,2],[55,0,57,0],[26,4,28,4],[26,5,28,5],[26,6,28,6],[52,4,54,4],[52,5,54,5],[52,6,54,6],[41,5,43,5],[41,6,43,6],[44,4,46,4],[44,5,46,5],[23,4,25,4],[23,5,25,5],[23,6,25,6],[10,12,12,12],[13,4,15,4],[13,5,15,5],[13,6,15,6],[13,8,15,8],[13,9,15,9],[13,10,15,10],[10,4,12,4],[10,5,12,5],[10,6,12,6],[10,8,12,8],[10,9,12,9],[10,10,12,10],[7,4,9,4],[7,5,9,5],[7,6,9,6],[7,8,9,8],[7,9,9,9],[7,10,9,10],[20,4,22,4],[20,5,22,5],[20,6,22,6]]}
[]
[]
[]
[]
[null,null,null,null,"Baseline",null,null,null,"Baseline score"]
[]
[]
[null,null,null,null,"Chalk grassland","Wheat crop","Wheat crop",null,{"$f":"VLOOKUP(E8,gubbins!$G$8:$H$12,2,FALSE)","v":6},{"$f":"VLOOKUP(F8,gubbins!$G$8:$H$12,2,FALSE)","v":2},{"$f":"VLOOKUP(G8,gubbins!$G$8:$H$12,2,FALSE)","v":2}]
[null,null,null,null,null,null,null,null,null,null,null,null,"TOTAL"]
["Habitats you can choose from"]
["Chalk Grassland",null,null,null,"Mown grass","Wheat crop","Wheat crop",null,{"$f":"VLOOKUP(E11,gubbins!$G$8:$H$12,2,FALSE)","v":2},{"$f":"VLOOKUP(F11,gubbins!$G$8:$H$12,2,FALSE)","v":2},{"$f":"VLOOKUP(G11,gubbins!$G$8:$H$12,2,FALSE)","v":2},null,{"$f":"SUM(I8:K16)","v":26}]
["Mown Grass"]
["Wheat crop"]
["Mixed scrub",null,null,null,"Chalk grassland","Wheat crop","Wheat crop",null,{"$f":"VLOOKUP(E14,gubbins!$G$8:$H$12,2,FALSE)","v":6},{"$f":"VLOOKUP(F14,gubbins!$G$8:$H$12,2,FALSE)","v":2},{"$f":"VLOOKUP(G14,gubbins!$G$8:$H$12,2,FALSE)","v":2}]
[]
[]
[]
[]
[]
[]
[null,null,null,null,"Chalk grassland","Road","?",null,"Game: Get the highest number of points"]
[]
[null,null,null,null,null,null,null,null,"Rules:"]
[null,null,null,null,"?","Road","?"]
[null,null,null,null,null,null,null,null,"1.  You can choose any habitat from the drop downs for the 5 blank spaces"]
[]
[null,null,null,null,"?","Road","?",null,"2. You must chose one square to be the construction compound, which then goes back to being it's original habitat"]
[]
[null,null,null,null,null,null,null,null,"Bonuses:"]
[]
[null,null,null,null,null,null,null,null,"1. 3 in a row: If you can get 3 in a row for Chalk Grassland, you get an extra X points - you have connected priority habitats which is good"]
[]
[null,null,null,null,null,null,null,null,"2. Enhance square: You can choose 1 square to leave as it's original habitat, and enhance it.  It scores double points for that square but must be the same habitat as before"]
[]
[null,null,null,null,null,null,null,null,"3. Your Enhance square can't be the same as your compound square"]
["Put a \"1\" in the square you want to be your compound using the drop down"]
["Remember: only choose one square",null,null,null,null,null,null,null,"4. The farmer would like easy fields to harvest.  If you have 2 Wheat Crop fields next to each other, you get an extra Y points"]
[]
["n/a","n/a",{"$f":"GAME!D24","v":0},null,"Chalk grassland","Road","?"]
[]
[null,null,null,null,null,null,null,null,"Error 1"]
[{"$f":"GAME!B27","v":0},"n/a",{"$f":"GAME!D27","v":0},null,"?","Road","?"]
[null,null,null,null,null,null,null,null,{"$f":"IF(SUM(A42:A47,C39:C47)>1,\"ERROR\",\"\")","v":""},{"$f":"IF(I43=\"ERROR\",\"Error - you can only pick one compound square\",\"\")","v":""}]
[]
[{"$f":"GAME!B30","v":0},"n/a",{"$f":"GAME!D30","v":0},null,"?","Road","?"]
[]
[]
[]
[]
[]
[]
[]
["n/a","n/a",{"$f":"AND(C39=1,G53<>G8)","v":false},null,"Chalk grassland","Road",{"$f":"GAME!F8","v":0},null,{"$f":"I8","v":6},0,{"$f":"IF(C39=1,K8/2,(VLOOKUP(G53,gubbins!$G$8:$I$12,3,FALSE))-G68)","v":{"$error":"#N/A"}}]
[null,null,null,null,null,null,null,null,null,null,null,null,"TOTAL"]
[]
[{"$f":"AND(A42=1,E56<>E11)","v":false},"n/a",{"$f":"AND(C42=1,G56<>G11)","v":false},null,{"$f":"GAME!D11","v":0},"Road",{"$f":"GAME!F11","v":0},null,{"$f":"IF(A42=1,I11/2,(VLOOKUP(E56,gubbins!$G$8:$I$12,3,FALSE))-E71)","v":{"$error":"#N/A"}},0,{"$f":"IF(C42=1,K11/2,(VLOOKUP(G56,gubbins!$G$8:$I$12,3,FALSE))-G71)","v":{"$error":"#N/A"}},null,{"$f":"SUM(I53:K61)+J74+SUM(R91:R96,T88:T96)+E134","v":{"$error":"#N/A"}},null,"Error 2"]
[]
[null,null,null,null,null,null,null,null,null,null,null,null,null,null,{"$f":"IF(OR(B63=\"ERROR1\",B63=\"ERROR2\",B63=\"ERROR3\",B63=\"ERROR4\",B63=\"ERROR5\"),\"Error - the Building Site square must have the same habitat type as the baseline\",\"\")","v":""}]
[{"$f":"AND(A45=1,E59<>E14)","v":false},"n/a",{"$f":"AND(C45=1,G59<>G14)","v":false},null,{"$f":"GAME!D14","v":0},"Road",{"$f":"GAME!F14","v":0},null,{"$f":"IF(A45=1,I14/2,(VLOOKUP(E59,gubbins!$G$8:$I$12,3,FALSE))-E74)","v":{"$error":"#N/A"}},0,{"$f":"IF(C45=1,K14/2,(VLOOKUP(G59,gubbins!$G$8:$I$12,3,FALSE))-G74)","v":{"$error":"#N/A"}}]
[]
[]
[]
[null,{"$f":"IFERROR(_xlfn.IFS(A56=TRUE,\"ERROR1\",A59=TRUE,\"ERROR2\",C53=TRUE,\"ERROR3\",C56=TRUE,\"ERROR4\",C59=TRUE,\"ERROR5\"),\"\")","v":""}]
[]
[]
[null,"Baseline",null,null,null,"Cost of creation",null,null,"3 chalk grassland bonus"]
[]
[{"$f":"I8","v":6},{"$f":"J8","v":2},{"$f":"K8","v":2},null,"n/a","n/a",{"$f":"IF(G53=G8,0,C68)","v":2},null,{"$f":"AND(E56=\"Chalk grassland\",E59=\"Chalk grassland\")","v":false}]
[]
[null,null,null,null,null,null,null,null,"Message",{"$f":"IF(I68=TRUE,\"Well done for connecting Chalk Grassland habitats - 5 bonus points!\",\"\")","v":""}]
[{"$f":"I11","v":2},2,2,null,{"$f":"IF(E56=E11,0,A71)","v":2},"n/a",{"$f":"IF(G56=G11,0,C71)","v":2}]
[null,null,null,null,null,null,null,null,"Bonus",5,"points"]
[]
[{"$f":"I14","v":6},2,2,null,{"$f":"IF(E59=E14,0,A74)","v":6},"n/a",{"$f":"IF(G59=G14,0,C74)","v":2},null,"Points",{"$f":"IF(I68=TRUE,J72,0)","v":0}]
[]
[]
[]
[]
[]
[]
[]
["Put a \"2\" in the square you want to enhance using the drop down"]
["Remember: only choose one square, and it can't be the same as the Compound square",null,null,null,null,null,null,null,null,null,null,null,null,null,null,null,null,"Add bonus points"]
[]
[]
["Select enhancment square",null,null,null,"Is it the same as the compound square"]
[]
["n/a","n/a",{"$f":"GAME!M24","v":0},null,"n/a","n/a",{"$f":"IF(C88+C39=3,\"ERROR\",\"\")","v":""},null,null,null,null,null,null,null,null,null,null,"n/a","n/a",{"$f":"IF(AND($I$92=FALSE,$I$104=FALSE)=TRUE,C68*C88/2,\"ERROR\")","v":0}]
[]
[null,null,null,null,null,null,null,null,"ERROR",null,null,null,null,null,null,"Points"]
[{"$f":"GAME!K27","v":0},"n/a",{"$f":"GAME!M27","v":0},null,{"$f":"IF(A91+A42=3,\"ERROR\",\"\")","v":""},"n/a",{"$f":"IF(C91+C42=3,\"ERROR\",\"\")","v":""},null,null,null,null,null,null,null,null,{"$f":"SUM(R91:R96,T88:T96)","v":0},null,{"$f":"IF(AND($I$92=FALSE,$I$104=FALSE)=TRUE,A71*A91/2,\"ERROR\")","v":0},"n/a",{"$f":"IF(AND($I$92=FALSE,$I$104=FALSE)=TRUE,C71*C91/2,\"ERROR\")","v":0}]
[null,null,null,null,null,null,null,null,{"$f":"OR(E91=\"ERROR\",E94=\"ERROR\",G88=\"ERROR\",G91=\"ERROR\",G94=\"ERROR\")","v":false},{"$f":"IF(I92=TRUE,\"Error - you can't enhance the compound square\",\"\")","v":""}]
[]
[{"$f":"GAME!K30","v":0},"n/a",{"$f":"GAME!M30","v":0},null,{"$f":"IF(A94+A45=3,\"ERROR\",\"\")","v":""},"n/a",{"$f":"IF(C94+C45=3,\"ERROR\",\"\")","v":""},null,"Message",null,null,null,null,null,null,null,null,{"$f":"IF(AND($I$92=FALSE,$I$104=FALSE)=TRUE,A74*A94/2,\"ERROR\")","v":0},"n/a",{"$f":"IF(AND($I$92=FALSE,$I$104=FALSE)=TRUE,C74*C94/2,\"ERROR\")","v":0}]
[]
[null,null,null,null,null,null,null,null,{"$f":"IF(P91=0,\"\",IF(I92=FALSE,CONCATENATE(\"Enhance Bonus - you have added \",P91,\" enhancement points!\"),\"enhancment error - same as compound\"))","v":""}]
[]
[null,null,null,null,"Is it the same habitat as before"]
[]
[null,null,null,null,"n/a","n/a",{"$f":"AND(C88=2,G53<>G8)","v":false}]
[]
[null,null,null,null,null,null,null,null,"ERROR"]
[null,null,null,null,{"$f":"AND(A91=2,E56<>E11)","v":false},"n/a",{"$f":"AND(C91=2,G56<>G11)","v":false}]
[null,null,null,null,null,null,null,null,{"$f":"OR(E103=TRUE,E106=TRUE,G100=TRUE,G103=TRUE,G106=TRUE)","v":false},{"$f":"IF(I104=TRUE,\"Error - you can only add Enhance bonus if you have not changed the habitat\",\"\")","v":""}]
[]
[null,null,null,null,{"$f":"AND(A94=2,E59<>E14)","v":false},"n/a",{"$f":"AND(C94=2,G59<>G14)","v":false},null,"Message"]
[]
[]
[]
[]
[]
[]
["Have we got 2 wheat crop fields?"]
[]
["n/a","n/a",{"$f":"IF(G53=\"Wheat crop\",1,0)","v":0},null,"ERROR"]
[]
[null,null,null,null,{"$f":"IF(SUM(A118:A123,C115:C123)<2,\"Error - not enough Wheat Crop fields\",\"\")","v":"Error - not enough Wheat Crop fields"}]
[{"$f":"IF(E56=\"Wheat crop\",1,0)","v":0},"n/a",{"$f":"IF(G56=\"Wheat crop\",1,0)","v":0}]
[]
[]
[{"$f":"IF(E59=\"Wheat crop\",1,0)","v":0},"n/a",{"$f":"IF(G59=\"Wheat crop\",1,0)","v":0}]
[]
[]
[]
[]
["Are the wheat crop fields next to each other?"]
[]
[null,null,{"$f":"C115+C118","v":0},null,"Bonus"]
[]
[null,null,null,null,{"$f":"OR(A132=2,C128=2,C132=2)","v":false}]
[]
[{"$f":"A121+A118","v":0},null,{"$f":"C121+C118","v":0},null,{"$f":"IF(E130=TRUE,\"Well done, you have 2 Wheat Crop fields next to each other and the farmer is happy - 2 bonus points!\",\"\")","v":""}]
[]
[null,null,null,null,{"$f":"IF(E130=TRUE,2,0)","v":0},"points"]